{"text_format":"3","workbook":"xlsx","n_sheets":2,"sheets":["Έναρξη","Προϋπολογισμός γάμου"],"read":"whole","date_system":"1900"}

{"sheet":"Έναρξη","index":0,"n_rows":7,"n_cols":2,"rows_kept":7}
[null,"ΠΛΗΡΟΦΟΡΙΕΣ ΓΙΑ ΑΥΤΟ ΤΟ ΠΡΟΤΥΠΟ"]
[null,"Χρησιμοποιήστε αυτό το πρότυπο για να καταγράψετε τα πραγματικά γαμήλια έξοδά σας σε διάφορα στοιχεία και να τα παρακολουθήσετε σε σχέση με προϋπολογισμένες ποσότητες."]
[null,"Εισαγάγετε έξοδα για ένδυση, διακοσμήσεις, δώρα, άνθη, μουσική, φωτογράφιση, δεξιώσεις, επιστολόχαρτα, μεταφορικά και διάφορα στοιχεία στους αντίστοιχους πίνακες."]
[null,"Τα συνολικά εκτιμώμενα και τα συνολικά πραγματικά έξοδα υπολογίζονται αυτόματα."]
[null,"Σημείωση: "]
[null,"Στη στήλη A στο φύλλο εργασίας ΠΡΟΫΠΟΛΟΓΙΣΜΟΣ ΓΑΜΟΥ παρέχονται πρόσθετες οδηγίες. Αυτό το κείμενο είναι κρυφό σκόπιμα. Για να καταργήσετε το κείμενο, επιλέξτε τη στήλη A και, στη συνέχεια, πατήστε το πλήκτρο DELETE. Για να εμφανίσετε το κείμενο, επιλέξτε τη στήλη A και, στη συνέχεια, αλλάξτε το χρώμα γραμματοσειράς."]
[null,"Για να μάθετε περισσότερα σχετικά με τους πίνακες, πατήστε το SHIFT και έπειτα F10 σε έναν πίνακα, επιλέξτε \"ΠΙΝΑΚΑΣ\" και, στη συνέχεια, επιλέξτε \"ΕΝΑΛΛΑΚΤΙΚΟ ΚΕΙΜΕΝΟ\"."]

{"sheet":"Προϋπολογισμός γάμου","index":1,"n_rows":93,"n_cols":4,"rows_kept":93,"merged":[[0,1,0,3],[2,1,2,3],[6,1,6,3],[15,1,15,3],[25,1,25,3],[34,1,34,3],[43,1,43,3],[50,1,50,3],[59,1,59,3],[68,1,68,3],[77,1,77,3],[85,1,85,3]]}
[null,"ΠΡΟΫΠΟΛΟΓΙΣΜOΣ ΓΑΜΟΥ"]
[]
[null,"ΣΥΝΟΛΙΚΑ ΕΞΟΔΑ "]
[null,"Στοιχείο ","Εκτιμώμενα","Πραγματικά"]
[null,"Συνολικά έξοδα ",{"$f":"SUM(Ένδυση[[#Totals],[Εκτιμώμενα]],Διακοσμήσεις[[#Totals],[Εκτιμώμενα]],Δώρα[[#Totals],[Εκτιμώμενα]],Λουλούδια[[#Totals],[Εκτιμώμενα]],Μουσική[[#Totals],[Εκτιμώμενα]],Φωτογράφιση[[#Totals],[Εκτιμώμενα]],Δεξίωση[[#Totals],[Εκτιμώμενα]],Χαρτικά_και_εκτύπωση[[#Totals],[Εκτιμώμενα]],Μετακινήσεις[[#Totals],[Εκτιμώμενα]],Άλλα_έξοδα[[#Totals],[Εκτιμώμενα]])","v":0},{"$f":"SUM(Ένδυση[[#Totals],[Πραγματικά]],Διακοσμήσεις[[#Totals],[Πραγματικά]],Δώρα[[#Totals],[Πραγματικά]],Λουλούδια[[#Totals],[Πραγματικά]],Μουσική[[#Totals],[Πραγματικά]],Φωτογράφιση[[#Totals],[Πραγματικά]],Δεξίωση[[#Totals],[Πραγματικά]],Χαρτικά_και_εκτύπωση[[#Totals],[Πραγματικά]],Μετακινήσεις[[#Totals],[Πραγματικά]],Άλλα_έξοδα[[#Totals],[Πραγματική]],)","v":0}]
[]
[null,"ΕΝΔΥΣΗ"]
[null,"Στοιχείο ","Εκτιμώμενα","Πραγματικά"]
[null,"Δαχτυλίδι αρραβώνα"]
[null,"Βέρα γάμου"]
[null,"Νυφικό"]
[null,"Πέπλο/Τιάρα"]
[null,"Άλλο:"]
[null,"Σύνολο ένδυσης",{"$f":"SUBTOTAL(109,Ένδυση[Εκτιμώμενα])","v":0},{"$f":"SUBTOTAL(109,Ένδυση[Πραγματικά])","v":0}]
[]
[null,"ΔΙΑΚΟΣΜΗΤΙΚΑ"]
[null,"Στοιχείο ","Εκτιμώμενα","Πραγματικά"]
[null,"Φιόγκοι για στασίδια εκκλησίας/άλλα καθίσματα"]
[null,"Βάζα για τα τραπέζια (χωρίς τα λουλούδια)"]
[null,"Κεριά"]
[null,"Φωτισμός"]
[null,"Μπαλόνια"]
[null,"Άλλο:"]
[null,"Σύνολο διακοσμήσεων",{"$f":"SUBTOTAL(109,Διακοσμήσεις[Εκτιμώμενα])","v":0},{"$f":"SUBTOTAL(109,Διακοσμήσεις[Πραγματικά])","v":0}]
[]
[null,"ΔΩΡΑ"]
[null,"Στοιχείο ","Εκτιμώμενα","Πραγματικά"]
[null,"Προσκεκλημένοι"]
[null,"Νύφη και γαμπρός"]
[null,"Γονείς"]
[null,"Παράνυμφοι/άλλοι συμμετέχοντες"]
[null,"Άλλο:"]
[null,"Σύνολο δώρων",{"$f":"SUBTOTAL(109,Δώρα[Εκτιμώμενα])","v":0},{"$f":"SUBTOTAL(109,Δώρα[Πραγματικά])","v":0}]
[]
[null,"ΑΝΘΗ"]
[null,"Στοιχείο ","Εκτιμώμενα","Πραγματικά"]
[null,"Ανθοδέσμες"]
[null,"Μπουτονιέρες"]
[null,"Κορσάζ"]
[null,"Τελετή"]
[null,"Άλλο:"]
[null,"Σύνολο άνθεων",{"$f":"SUBTOTAL(109,Λουλούδια[Εκτιμώμενα])","v":0},{"$f":"SUBTOTAL(109,Λουλούδια[Πραγματικά])","v":0}]
[]
[null,"ΜΟΥΣΙΚΗ"]
[null,"Στοιχείο ","Εκτιμώμενα","Πραγματικά"]
[null,"Μουσικοί για την τελετή"]
[null,"Ορχήστρα/DJ για τη δεξίωση"]
[null,"Άλλο:"]
[null,"Σύνολο μουσικής",{"$f":"SUBTOTAL(109,Μουσική[Εκτιμώμενα])","v":0},{"$f":"SUBTOTAL(109,Μουσική[Πραγματικά])","v":0}]
[]
[null,"ΦΩΤΟΓΡΑΦΙΣΗ"]
[null,"Στοιχείο ","Εκτιμώμενα","Πραγματικά"]
[null,"Τελικές"]
[null,"Δείγματα"]
[null,"Επιπλέον εκτυπώσεις"]
[null,"Άλμπουμ φωτογραφιών"]
[null,"Άλλο:"]
[null,"Σύνολο φωτογράφισης",{"$f":"SUBTOTAL(109,Φωτογράφιση[Εκτιμώμενα])","v":0},{"$f":"SUBTOTAL(109,Φωτογράφιση[Πραγματικά])","v":0}]
[]
[null,"ΔΕΞΙΩΣΗ "]
[null,"Στοιχείο ","Εκτιμώμενα","Πραγματικά"]
[null,"Έξοδα αίθουσας/κέντρου"]
[null,"Τραπέζια και καρέκλες"]
[null,"Τρόφιμα"]
[null,"Λευκά είδη"]
[null,"Άλλο:"]
[null,"Σύνολο δεξίωσης (χωρίς τη μουσική και τη διακόσμηση)",{"$f":"SUBTOTAL(109,Δεξίωση[Εκτιμώμενα])","v":0},{"$f":"SUBTOTAL(109,Δεξίωση[Πραγματικά])","v":0}]
[]
[null,"ΕΠΙΣΤΟΛΟΧΑΡΤΑ & ΕΚΤΥΠΩΣΕΙΣ"]
[null,"Στοιχείο ","Εκτιμώμενα","Πραγματικά"]
[null,"Προσκλητήρια"]
[null,"Ανακοινώσεις"]
[null,"Ευχαριστήριες κάρτες"]
[null,"Προσωπικά επιστολόχαρτα"]
[null,"Άλλο:"]
[null,"Σύνολο επιστολόχαρτων//εκτυπώσεων",{"$f":"SUBTOTAL(109,Χαρτικά_και_εκτύπωση[Εκτιμώμενα])","v":0},{"$f":"SUBTOTAL(109,Χαρτικά_και_εκτύπωση[Πραγματικά])","v":0}]
[]
[null,"ΜΕΤΑΦΟΡΕΣ"]
[null,"Στοιχείο ","Εκτιμώμενα","Πραγματικά"]
[null,"Λιμουζίνες/λεωφορεία"]
[null,"Στάθμευση"]
[null,"Ταξί"]
[null,"Άλλο:"]
[null,"Σύνολο μεταφορικών",{"$f":"SUBTOTAL(109,Μετακινήσεις[Εκτιμώμενα])","v":0},{"$f":"SUBTOTAL(109,Μετακινήσεις[Πραγματικά])","v":0}]
[]
[null,"ΑΛΛΑ ΕΞΟΔΑ"]
[null,"Στοιχείο ","Εκτιμώμενα","Πραγματική"]
[null,"Τελετάρχης"]
[null,"Χρέωση δημαρχείου/εκκλησίας"]
[null,"Συντονιστής γάμου"]
[null,"Δείπνο πρόβας"]
[null,"Άλλο:"]
[null,"Σύνολο άλλων εξόδων",{"$f":"SUBTOTAL(109,Άλλα_έξοδα[Εκτιμώμενα])","v":0},{"$f":"SUBTOTAL(109,Άλλα_έξοδα[Πραγματική])","v":0}]